[Event "Chessity Nationale Pupillendag 2018 - Groep F"]
[Site "Meppel, Netherlands"]
[Date "2018.06.23"]
[Round "5.2"]
[White "Jakhari, Ansh"]
[Black "Madularea, David"]
[Result "1-0"]
[TimeControl "15 min + 10 sec"]
[WhiteElo "1293"]
[BlackElo "961"]

1. e4 {[%clk 00:15:19]} {[%emt 00:00:02]} e5 {[%clk 00:15:19]} {[%emt
00:00:02]} 2. Nf3 {[%clk 00:15:28]} Nf6 {[%clk 00:15:27]} {[%emt 00:00:03]} 3.
Nxe5 {[%clk 00:15:37]} {[%emt 00:00:01]} Qe7 {[%clk 00:15:35]} 4. d4 {[%clk
00:15:29]} {[%emt 00:00:18]} d6 {[%clk 00:15:44]} {[%emt 00:00:02]} 5. Nf3
{[%clk 00:15:38]} Qxe4+ {[%clk 00:15:41]} {[%emt 00:00:13]} 6. Be2 {[%clk
00:15:48]} Bg4 {[%clk 00:15:44]} {[%emt 00:00:08]} 7. O-O {[%clk 00:15:56]}
{[%emt 00:00:01]} Nc6 {[%clk 00:15:37]} {[%emt 00:00:18]} 8. Nc3 {[%clk
00:15:55]} {[%emt 00:00:10]} Qe6 {[%clk 00:15:21]} {[%emt 00:00:25]} 9. d5
{[%clk 00:16:03]} {[%emt 00:00:04]} Nxd5 {[%clk 00:15:17]} {[%emt 00:00:13]} 10.
Qxd5 {[%clk 00:16:11]} {[%emt 00:00:02]} Qxe2 {[%clk 00:15:20]} {[%emt
00:00:07]} 11. Nxe2 {[%clk 00:16:18]} {[%emt 00:00:04]} Be6 {[%clk 00:15:18]}
{[%emt 00:00:12]} 12. Qb5 {[%clk 00:16:25]} {[%emt 00:00:03]} O-O-O {[%clk
00:15:13]} {[%emt 00:00:15]} 13. a4 {[%clk 00:16:26]} {[%emt 00:00:09]} Bd7
{[%clk 00:15:07]} {[%emt 00:00:12]} 14. Qc4 {[%clk 00:16:27]} {[%emt 00:00:12]}
Be6 {[%clk 00:14:57]} {[%emt 00:00:22]} 15. Qc3 {[%clk 00:16:33]} {[%emt
00:00:03]} d5 {[%clk 00:15:02]} {[%emt 00:00:05]} 16. a5 {[%clk 00:16:39]}
{[%emt 00:00:05]} Rd6 {[%clk 00:14:35]} {[%emt 00:00:36]} 17. a6 {[%emt
00:00:07]} b6 {[%clk 00:14:38]} {[%emt 00:00:06]} 18. Bf4 {[%clk 00:16:49]}
{[%emt 00:00:04]} d4 {[%clk 00:14:38]} {[%emt 00:00:11]} 19. Qd2 {[%clk
00:16:38]} {[%emt 00:00:20]} Rd7 {[%clk 00:14:33]} {[%emt 00:00:08]} 20. Nexd4
{[%clk 00:16:30]} {[%emt 00:00:24]} Nxd4 {[%clk 00:14:34]} {[%emt 00:00:09]} 21.
Nxd4 {[%emt 00:00:04]} c5 22. c3 {[%clk 00:16:37]} {[%emt 00:00:10]} cxd4
{[%clk 00:14:50]} {[%emt 00:00:03]} 23. cxd4 {[%clk 00:16:47]} f6 {[%clk
00:14:21]} {[%emt 00:00:39]} 24. Rac1+ {[%clk 00:16:49]} {[%emt 00:00:08]} Kd8
{[%clk 00:14:21]} {[%emt 00:00:10]} 25. Rfe1 {[%clk 00:16:54]} {[%emt
00:00:06]} Bf7 {[%clk 00:14:16]} {[%emt 00:00:13]} 26. Qc3 {[%clk 00:17:03]}
{[%emt 00:00:02]} Bc5 {[%clk 00:13:39]} {[%emt 00:00:48]} 27. dxc5 {[%clk
00:17:08]} {[%emt 00:00:05]} b5 {[%clk 00:13:37]} {[%emt 00:00:11]} 28. c6
{[%clk 00:17:16]} {[%emt 00:00:03]} Rd5 {[%clk 00:13:21]} {[%emt 00:00:23]} 29.
c7+ {[%clk 00:17:23]} {[%emt 00:00:05]} Kc8 {[%clk 00:13:26]} {[%emt 00:00:03]}
30. Qc6 {[%clk 00:17:32]} {[%emt 00:00:03]} Rg8 {[%clk 00:13:00]} {[%emt
00:00:34]} 31. Qa8+ {[%clk 00:17:37]} {[%emt 00:00:07]} Kd7 {[%clk 00:13:09]}
{[%emt 00:00:02]} 32. c8=Q+ {[%clk 00:17:44]} {[%emt 00:00:02]} Rxc8 {[%clk
00:13:06]} {[%emt 00:00:13]} 33. Qxc8# {[%clk 00:17:52]} {[%emt 00:00:02]} 1-0

[Event "Chessity Nationale Pupillendag 2018 - Groep F"]
[Site "Meppel, Netherlands"]
[Date "2018.06.23"]
[Round "5.3"]
[White "Jonkman, Sophia"]
[Black "Grooten, Tommy"]
[Result "1-0"]
[TimeControl "15 min + 10 sec"]
[WhiteElo "538"]
[BlackElo "1408"]

1. d4 {[%clk 00:15:19]} Nf6 {[%clk 00:15:19]} {[%emt 00:00:02]} 2. c4 {[%clk
00:15:28]} {[%emt 00:00:02]} c5 {[%clk 00:15:26]} {[%emt 00:00:03]} 3. Nf3
{[%clk 00:15:29]} {[%emt 00:00:10]} cxd4 {[%clk 00:15:28]} {[%emt 00:00:08]} 4.
Nxd4 {[%clk 00:15:37]} {[%emt 00:00:02]} Nc6 {[%clk 00:14:55]} {[%emt
00:00:43]} 5. Nxc6 {[%clk 00:15:34]} {[%emt 00:00:13]} bxc6 {[%clk 00:15:01]}
{[%emt 00:00:03]} 6. Nc3 {[%clk 00:15:43]} e5 {[%clk 00:14:58]} {[%emt
00:00:14]} 7. g3 {[%clk 00:15:39]} {[%emt 00:00:14]} Rb8 {[%clk 00:14:36]}
{[%emt 00:00:32]} 8. Bg2 {[%clk 00:15:42]} {[%emt 00:00:06]} Bb4 {[%clk
00:14:33]} {[%emt 00:00:13]} 9. Bd2 {[%clk 00:15:46]} {[%emt 00:00:06]} O-O
{[%clk 00:14:17]} {[%emt 00:00:27]} 10. O-O {[%clk 00:15:35]} {[%emt 00:00:21]}
Ba6 {[%clk 00:14:17]} {[%emt 00:00:10]} 11. b3 {[%clk 00:15:24]} {[%emt
00:00:21]} Qa5 {[%clk 00:14:05]} {[%emt 00:00:22]} 12. Qc2 {[%clk 00:14:40]}
{[%emt 00:00:53]} Rbc8 {[%clk 00:13:52]} {[%emt 00:00:24]} 13. Qb2 {[%clk
00:14:24]} {[%emt 00:00:26]} Qc7 {[%clk 00:13:31]} {[%emt 00:00:30]} 14. Ne4
{[%clk 00:13:57]} {[%emt 00:00:37]} Bxd2 {[%clk 00:12:39]} {[%emt 00:01:01]} 15.
Nxf6+ {[%clk 00:13:56]} {[%emt 00:00:11]} gxf6 {[%clk 00:12:47]} {[%emt
00:00:03]} 16. Qxd2 {[%clk 00:14:04]} Rcd8 {[%clk 00:12:28]} {[%emt 00:00:29]}
17. Qh6 {[%clk 00:12:55]} {[%emt 00:01:20]} Qd6 {[%clk 00:12:07]} {[%emt
00:00:31]} 18. Be4 {[%clk 00:12:53]} {[%emt 00:00:12]} Rfe8 {[%clk 00:11:57]}
{[%emt 00:00:20]} 19. Qxh7+ {[%clk 00:12:45]} {[%emt 00:00:18]} Kf8 {[%clk
00:12:05]} {[%emt 00:00:02]} 20. Rfd1 {[%clk 00:11:58]} {[%emt 00:00:58]} Qe6
{[%clk 00:11:12]} {[%emt 00:01:02]} 21. Bf3 {[%emt 00:01:41]} 1-0

[Event "Chessity Nationale Pupillendag 2018 - Groep F"]
[Site "Meppel, Netherlands"]
[Date "2018.06.23"]
[Round "5.4"]
[White "Van Batenburg, Mees"]
[Black "Tang, Dean"]
[Result "1-0"]
[TimeControl "15 min + 10 sec"]
[WhiteElo "962"]
[BlackElo "563"]

1. e4 {[%clk 00:15:19]} d5 {[%clk 00:15:20]} {[%emt 00:00:01]} 2. exd5 {[%clk
00:15:28]} {[%emt 00:00:02]} e6 {[%clk 00:15:28]} {[%emt 00:00:02]} 3. dxe6
{[%clk 00:15:34]} {[%emt 00:00:03]} Bxe6 {[%clk 00:15:36]} {[%emt 00:00:02]} 4.
Nc3 {[%clk 00:15:41]} {[%emt 00:00:03]} Nf6 {[%clk 00:15:44]} {[%emt 00:00:03]}
5. Nf3 {[%clk 00:15:46]} {[%emt 00:00:05]} Nc6 {[%clk 00:15:53]} 6. Qe2 {[%clk
00:15:45]} {[%emt 00:00:11]} Bb4 {[%clk 00:15:57]} {[%emt 00:00:07]} 7. a3
{[%clk 00:15:47]} {[%emt 00:00:08]} Bc5 {[%clk 00:16:03]} {[%emt 00:00:03]} 8.
b4 {[%clk 00:15:53]} {[%emt 00:00:03]} Be7 {[%clk 00:16:07]} {[%emt 00:00:07]}
9. d3 {[%clk 00:15:54]} {[%emt 00:00:09]} Nd4 {[%clk 00:16:12]} {[%emt
00:00:05]} 10. Nxd4 {[%clk 00:15:48]} {[%emt 00:00:15]} Qxd4 {[%clk 00:16:20]}
11. Bb2 {[%clk 00:15:41]} {[%emt 00:00:17]} Qd8 {[%clk 00:16:22]} {[%emt
00:00:08]} 12. g3 {[%clk 00:15:29]} {[%emt 00:00:22]} Bd5 {[%clk 00:16:29]}
{[%emt 00:00:04]} 13. f3 {[%clk 00:15:20]} {[%emt 00:00:19]} Qd6 {[%clk
00:16:16]} {[%emt 00:00:21]} 14. Bg2 {[%clk 00:15:15]} {[%emt 00:00:11]} Qe6
{[%clk 00:16:23]} {[%emt 00:00:09]} 15. Qxe6 Bxe6 {[%clk 00:16:32]} 16. O-O
{[%clk 00:15:14]} {[%emt 00:00:09]} O-O-O {[%clk 00:16:40]} {[%emt 00:00:03]}
17. Nb5 {[%clk 00:15:13]} {[%emt 00:00:09]} Kb8 {[%clk 00:16:44]} {[%emt
00:00:06]} 18. Bd4 {[%clk 00:15:04]} {[%emt 00:00:17]} b6 {[%clk 00:16:44]}
{[%emt 00:00:13]} 19. Bf2 {[%clk 00:14:24]} {[%emt 00:00:48]} c5 {[%clk
00:16:46]} {[%emt 00:00:10]} 20. g4 {[%clk 00:14:15]} {[%emt 00:00:18]} cxb4
{[%clk 00:16:54]} {[%emt 00:00:03]} 21. axb4 {[%clk 00:14:14]} {[%emt
00:00:11]} Bxb4 {[%clk 00:16:57]} {[%emt 00:00:07]} 22. Rxa7 {[%clk 00:14:14]}
{[%emt 00:00:10]} Bc5 {[%clk 00:16:58]} {[%emt 00:00:09]} 23. Bxc5 {[%clk
00:13:59]} {[%emt 00:00:25]} bxc5 {[%clk 00:17:07]} {[%emt 00:00:01]} 24. g5
{[%clk 00:13:52]} {[%emt 00:00:16]} Nd5 {[%clk 00:17:02]} {[%emt 00:00:16]} 25.
Rfa1 {[%clk 00:13:30]} {[%emt 00:00:15]} Nb6 {[%clk 00:17:01]} {[%emt
00:00:28]} 26. f4 {[%clk 00:13:23]} {[%emt 00:00:15]} Bd7 {[%clk 00:17:09]}
{[%emt 00:00:04]} 27. Rb7+ {[%clk 00:13:25]} {[%emt 00:00:06]} Kc8 {[%clk
00:17:10]} {[%emt 00:00:12]} 28. Nd6# {[%clk 00:13:33]} {[%emt 00:00:02]} 1-0

[Event "Chessity Nationale Pupillendag 2018 - Groep F"]
[Site "Meppel, Netherlands"]
[Date "2018.06.23"]
[Round "5.5"]
[White "Paulzen, Yuko"]
[Black "Dirksen, Reiko"]
[Result "1-0"]
[TimeControl "15 min + 10 sec"]
[WhiteElo "931"]
[BlackElo "560"]

1. d4 {[%clk 00:15:17]} {[%emt 00:00:03]} d5 {[%clk 00:15:17]} {[%emt
00:00:02]} 2. Nc3 {[%clk 00:15:22]} {[%emt 00:00:05]} Nf6 {[%clk 00:15:23]}
{[%emt 00:00:05]} 3. Bf4 {[%clk 00:15:26]} {[%emt 00:00:05]} Nc6 {[%clk
00:15:28]} {[%emt 00:00:05]} 4. Nb5 {[%clk 00:15:33]} {[%emt 00:00:04]} e5
{[%clk 00:15:30]} {[%emt 00:00:09]} 5. dxe5 {[%clk 00:15:28]} {[%emt 00:00:15]}
a6 {[%clk 00:15:09]} {[%emt 00:00:30]} 6. Nc3 {[%clk 00:15:06]} {[%emt
00:00:32]} Nd7 {[%emt 00:00:30]} 7. Nf3 {[%clk 00:15:01]} {[%emt 00:00:03]} Bb4
{[%clk 00:14:54]} {[%emt 00:00:15]} 8. Qd2 {[%clk 00:15:01]} {[%emt 00:00:12]}
Nc5 {[%clk 00:14:25]} {[%emt 00:00:38]} 9. a3 {[%clk 00:14:15]} {[%emt
00:00:58]} d4 {[%clk 00:14:16]} {[%emt 00:00:19]} 10. axb4 {[%clk 00:13:58]}
{[%emt 00:00:27]} dxc3 {[%clk 00:14:23]} {[%emt 00:00:04]} 11. Qxd8+ {[%clk
00:14:05]} {[%emt 00:00:02]} Nxd8 {[%clk 00:14:20]} {[%emt 00:00:12]} 12. bxc5
{[%clk 00:14:13]} {[%emt 00:00:03]} cxb2 {[%clk 00:14:18]} {[%emt 00:00:11]} 13.
Rb1 {[%clk 00:14:21]} {[%emt 00:00:03]} Nc6 {[%clk 00:14:12]} {[%emt 00:00:17]}
14. Rxb2 {[%clk 00:14:28]} {[%emt 00:00:02]} Bf5 {[%clk 00:14:13]} {[%emt
00:00:09]} 15. c3 {[%clk 00:14:30]} {[%emt 00:00:08]} O-O-O {[%clk 00:14:17]}
{[%emt 00:00:06]} 16. e3 {[%clk 00:14:26]} {[%emt 00:00:14]} Rd7 {[%clk
00:14:17]} {[%emt 00:00:11]} 17. Be2 {[%clk 00:14:22]} {[%emt 00:00:14]} Rhd8
{[%clk 00:14:10]} {[%emt 00:00:17]} 18. O-O {[%clk 00:14:28]} {[%emt 00:00:04]}
Bg4 {[%clk 00:14:12]} {[%emt 00:00:09]} 19. Rfb1 {[%clk 00:14:30]} {[%emt
00:00:07]} b5 {[%clk 00:14:07]} {[%emt 00:00:16]} 20. h3 {[%clk 00:14:23]}
{[%emt 00:00:18]} Bf5 {[%clk 00:14:00]} {[%emt 00:00:15]} 21. Rc1 {[%clk
00:14:19]} {[%emt 00:00:14]} Be4 {[%clk 00:13:41]} {[%emt 00:00:29]} 22. c4
{[%clk 00:14:05]} {[%emt 00:00:25]} bxc4 {[%clk 00:13:38]} {[%emt 00:00:12]} 23.
Bxc4 {[%clk 00:14:07]} {[%emt 00:00:08]} Bxf3 {[%clk 00:13:35]} {[%emt
00:00:14]} 24. Bxa6# {[%clk 00:14:11]} {[%emt 00:00:07]} 1-0

[Event "Chessity Nationale Pupillendag 2018 - Groep F"]
[Site "Meppel, Netherlands"]
[Date "2018.06.23"]
[Round "5.6"]
[White "Van Gaal, Hugo"]
[Black "Lopes, Samuel"]
[Result "1-0"]
[TimeControl "15 min + 10 sec"]
[WhiteElo "851"]
[BlackElo "455"]

1. e4 {[%clk 00:15:19]} {[%emt 00:00:01]} e5 {[%clk 00:15:07]} {[%emt
00:00:12]} 2. Nf3 {[%clk 00:15:25]} {[%emt 00:00:02]} Nc6 {[%clk 00:14:59]}
{[%emt 00:00:20]} 3. Nc3 {[%clk 00:15:33]} {[%emt 00:00:03]} Bc5 {[%clk
00:14:33]} {[%emt 00:00:23]} 4. Bc4 {[%clk 00:15:23]} {[%emt 00:00:33]} Nf6
{[%clk 00:14:22]} {[%emt 00:00:20]} 5. Ng5 {[%clk 00:15:20]} {[%emt 00:00:14]}
Nh5 {[%clk 00:13:48]} {[%emt 00:00:42]} 6. Qxh5 {[%clk 00:15:24]} {[%emt
00:00:07]} g6 {[%clk 00:13:28]} {[%emt 00:00:29]} 7. Qg4 {[%clk 00:14:43]}
{[%emt 00:00:17]} d5 {[%clk 00:13:22]} {[%emt 00:00:51]} 8. Bxd5 {[%clk
00:14:26]} {[%emt 00:00:26]} Bxg4 {[%clk 00:13:17]} {[%emt 00:00:16]} 9. Nxf7
{[%clk 00:14:21]} {[%emt 00:00:16]} Bxf2+ {[%clk 00:13:02]} {[%emt 00:00:24]}
10. Kxf2 {[%clk 00:14:22]} {[%emt 00:00:10]} Qf6+ {[%clk 00:12:57]} {[%emt
00:00:14]} 11. Kg1 {[%clk 00:14:14]} {[%emt 00:00:17]} Qh4 {[%clk 00:12:23]}
{[%emt 00:00:41]} 12. g3 {[%clk 00:14:12]} {[%emt 00:00:16]} Qf6 {[%clk
00:11:51]} {[%emt 00:00:27]} 13. Nb5 {[%clk 00:13:39]} {[%emt 00:00:47]} Bf3
{[%clk 00:11:43]} {[%emt 00:00:28]} 14. Nxc7+ {[%clk 00:13:39]} {[%emt
00:00:12]} Kf8 {[%clk 00:11:40]} {[%emt 00:00:07]} 15. Nxa8 Bxh1 16. Nxh8
{[%clk 00:13:27]} {[%emt 00:00:11]} Qf3 {[%clk 00:11:31]} {[%emt 00:00:16]} 17.
Nxg6+ {[%emt 00:00:29]} Kg7 {[%emt 00:00:19]} 18. Nh4 {[%clk 00:12:38]} {[%emt
00:00:11]} Bg2 {[%clk 00:10:48]} {[%emt 00:00:50]} 19. Nxf3 {[%clk 00:12:46]}
{[%emt 00:00:07]} Bxf3 {[%clk 00:10:12]} {[%emt 00:00:46]} 20. Nc7 {[%clk
00:12:40]} {[%emt 00:00:15]} Nd4 {[%clk 00:10:05]} {[%emt 00:00:13]} 21. Ne8+
{[%clk 00:12:45]} {[%emt 00:00:09]} Kf8 {[%clk 00:09:41]} {[%emt 00:00:27]} 22.
Nd6 {[%clk 00:12:07]} {[%emt 00:00:14]} Nxc2 {[%clk 00:09:47]} {[%emt
00:00:46]} 23. Rb1 {[%clk 00:12:12]} {[%emt 00:00:03]} Nd4 {[%clk 00:09:14]}
{[%emt 00:00:27]} 24. Nxb7 {[%clk 00:12:03]} {[%emt 00:00:38]} Ne2+ {[%clk
00:09:00]} {[%emt 00:00:23]} 25. Kf2 {[%clk 00:12:09]} {[%emt 00:00:05]} Nd4
{[%clk 00:08:45]} {[%emt 00:00:23]} 26. Kg1 {[%clk 00:11:50]} {[%emt 00:00:29]}
Ne2+ {[%clk 00:08:34]} {[%emt 00:00:23]} 27. Kf1 {[%clk 00:11:48]} {[%emt
00:00:12]} Kg7 {[%clk 00:08:10]} {[%emt 00:00:31]} 28. b4 {[%clk 00:11:52]}
{[%emt 00:00:10]} Kg6 {[%clk 00:07:55]} {[%emt 00:00:23]} 29. b5 {[%clk
00:11:19]} {[%emt 00:00:10]} Kg5 {[%clk 00:07:57]} {[%emt 00:00:41]} 30. a4
{[%clk 00:11:18]} {[%emt 00:00:12]} Kg4 {[%clk 00:07:46]} {[%emt 00:00:19]} 31.
a5 {[%clk 00:11:20]} {[%emt 00:00:10]} Kh3 {[%clk 00:07:34]} {[%emt 00:00:17]}
32. Be6 {[%clk 00:11:24]} {[%emt 00:00:11]} Kxh2 {[%clk 00:07:23]} {[%emt
00:00:18]} 33. a6 {[%clk 00:10:47]} {[%emt 00:00:51]} Ng1 {[%clk 00:07:00]}
{[%emt 00:00:28]} 34. Rb2 {[%clk 00:10:17]} {[%emt 00:00:44]} Bg2+ {[%clk
00:06:52]} {[%emt 00:00:18]} 35. Kf2 {[%clk 00:09:58]} {[%emt 00:00:28]} Nh3+
{[%clk 00:06:23]} {[%emt 00:00:39]} 36. Bxh3 {[%clk 00:09:52]} {[%emt
00:00:17]} Bxe4 {[%clk 00:05:35]} {[%emt 00:00:58]} 37. b6 {[%clk 00:09:37]}
{[%emt 00:00:25]} axb6 {[%clk 00:05:25]} {[%emt 00:00:18]} 38. Rxb6 {[%clk
00:09:44]} {[%emt 00:00:05]} Bxb7 {[%clk 00:04:42]} {[%emt 00:00:51]} 39. Rxb7
{[%clk 00:09:47]} {[%emt 00:00:09]} Kxh3 {[%clk 00:03:47]} {[%emt 00:01:02]} 40.
Rxh7 {[%clk 00:09:52]} {[%emt 00:00:08]} Kg4 {[%clk 00:03:39]} {[%emt
00:00:16]} 41. a7 {[%clk 00:09:56]} {[%emt 00:00:08]} e4 {[%clk 00:03:12]}
{[%emt 00:00:29]} 42. a8=Q {[%clk 00:10:00]} {[%emt 00:00:14]} e3+ {[%clk
00:02:51]} {[%emt 00:00:31]} 43. Kxe3 {[%clk 00:09:58]} {[%emt 00:00:12]} Kg5
{[%clk 00:02:46]} {[%emt 00:00:10]} 44. Rg7+ {[%clk 00:09:58]} {[%emt
00:00:14]} Kf6 {[%clk 00:02:37]} {[%emt 00:00:18]} 45. Rg4 {[%clk 00:09:54]}
{[%emt 00:00:13]} Ke5 {[%clk 00:02:05]} {[%emt 00:00:37]} 46. Rg6 {[%clk
00:09:48]} {[%emt 00:00:24]} Kf5 {[%clk 00:01:40]} {[%emt 00:00:32]} 47. Qe4#
{[%clk 00:09:55]} {[%emt 00:00:06]} 1-0

[Event "Chessity Nationale Pupillendag 2018 - Groep F"]
[Site "Meppel, Netherlands"]
[Date "2018.06.23"]
[Round "6.1"]
[White "Kazarjan, Gachatur"]
[Black "Van Batenburg, Mees"]
[Result "0-1"]
[TimeControl "15 min + 10 sec"]
[WhiteElo "1020"]
[BlackElo "962"]

1. d4 {[%clk 00:15:20]} {[%emt 00:05:19]} d5 {[%clk 00:15:19]} 2. c4 {[%clk
00:15:29]} {[%emt 00:00:01]} e6 {[%clk 00:15:28]} {[%emt 00:00:02]} 3. Nc3
{[%clk 00:15:35]} {[%emt 00:00:04]} Nf6 {[%clk 00:15:35]} {[%emt 00:00:03]} 4.
Bg5 {[%clk 00:15:42]} {[%emt 00:00:02]} Be7 {[%clk 00:15:38]} {[%emt 00:00:07]}
5. Nf3 {[%clk 00:15:44]} {[%emt 00:00:08]} h6 {[%clk 00:15:47]} {[%emt
00:00:02]} 6. Bh4 {[%clk 00:15:53]} {[%emt 00:00:02]} g5 {[%clk 00:15:55]}
{[%emt 00:00:01]} 7. Bg3 {[%clk 00:16:02]} Bb4 {[%clk 00:15:59]} {[%emt
00:00:08]} 8. Qb3 {[%clk 00:16:05]} {[%emt 00:00:07]} Bd6 {[%clk 00:15:51]}
{[%emt 00:00:13]} 9. Be5 {[%clk 00:16:02]} {[%emt 00:00:18]} Nc6 {[%clk
00:15:21]} {[%emt 00:00:40]} 10. Bxf6 {[%clk 00:16:06]} {[%emt 00:00:05]} Qxf6
{[%emt 00:00:04]} 11. cxd5 {[%clk 00:16:13]} {[%emt 00:00:02]} Nxd4 {[%clk
00:15:25]} {[%emt 00:00:13]} 12. Nxd4 {[%clk 00:16:01]} {[%emt 00:00:22]} Qxd4
{[%clk 00:15:32]} {[%emt 00:00:03]} 13. e3 {[%clk 00:16:00]} {[%emt 00:00:11]}
Qe5 {[%clk 00:15:24]} {[%emt 00:00:10]} 14. Bb5+ {[%clk 00:16:07]} {[%emt
00:00:12]} Bd7 {[%clk 00:15:15]} {[%emt 00:00:20]} 15. Bxd7+ {[%clk 00:16:12]}
{[%emt 00:00:04]} Kxd7 {[%clk 00:15:22]} {[%emt 00:00:02]} 16. Qxb7 {[%clk
00:16:11]} {[%emt 00:00:12]} Rhb8 {[%clk 00:15:17]} {[%emt 00:00:13]} 17. Qc6+
{[%clk 00:16:18]} {[%emt 00:00:05]} Ke7 {[%clk 00:14:51]} {[%emt 00:00:25]} 18.
g3 {[%clk 00:15:48]} {[%emt 00:00:51]} h5 {[%clk 00:14:26]} {[%emt 00:00:34]}
19. dxe6 {[%clk 00:15:51]} {[%emt 00:00:08]} fxe6 {[%clk 00:14:32]} {[%emt
00:00:05]} 20. Qe4 {[%clk 00:15:35]} {[%emt 00:00:24]} Qxe4 {[%clk 00:14:06]}
{[%emt 00:00:36]} 21. Nxe4 {[%clk 00:15:40]} {[%emt 00:00:05]} Rxb2 {[%clk
00:14:14]} {[%emt 00:00:03]} 22. O-O {[%clk 00:15:44]} {[%emt 00:00:07]} h4
{[%clk 00:14:07]} {[%emt 00:00:12]} 23. Nxg5 {[%clk 00:15:39]} {[%emt
00:00:19]} hxg3 {[%clk 00:14:15]} {[%emt 00:00:02]} 24. fxg3 {[%clk 00:15:47]}
{[%emt 00:00:02]} Rh8 {[%clk 00:14:00]} {[%emt 00:00:21]} 25. Nf3 {[%clk
00:15:53]} {[%emt 00:00:09]} Bc5 {[%clk 00:13:58]} {[%emt 00:00:11]} 26. Nd4
{[%clk 00:15:43]} {[%emt 00:00:21]} Rhxh2 {[%clk 00:13:53]} {[%emt 00:00:15]}
27. Nc6+ {[%clk 00:15:28]} {[%emt 00:00:24]} Kd6 {[%clk 00:13:58]} {[%emt
00:00:05]} 28. Rfd1+ {[%clk 00:14:59]} {[%emt 00:00:38]} Kxc6 {[%clk 00:14:05]}
{[%emt 00:00:04]} 29. Rdc1 {[%clk 00:14:51]} {[%emt 00:00:19]} Kb6 {[%clk
00:14:03]} {[%emt 00:00:08]} 30. Rcb1 {[%clk 00:14:57]} {[%emt 00:00:08]} Bxe3+
{[%clk 00:14:10]} {[%emt 00:00:02]} 31. Kf1 {[%clk 00:15:02]} {[%emt 00:00:05]}
Rhf2+ {[%clk 00:14:19]} {[%emt 00:00:02]} 32. Kg1 {[%clk 00:15:03]} {[%emt
00:00:08]} Rfd2+ {[%clk 00:14:18]} {[%emt 00:00:12]} 33. Kf1 {[%clk 00:15:04]}
{[%emt 00:00:07]} Rxb1+ {[%clk 00:14:16]} {[%emt 00:00:15]} 34. Rxb1+ {[%clk
00:15:13]} Kc6 {[%clk 00:14:23]} {[%emt 00:00:04]} 35. Rc1+ {[%clk 00:15:14]}
{[%emt 00:00:09]} Kd7 {[%clk 00:14:32]} {[%emt 00:00:01]} 36. Rc3 {[%clk
00:15:23]} {[%emt 00:00:01]} Bd4 {[%clk 00:14:30]} {[%emt 00:00:10]} 37. Rb3
{[%clk 00:15:18]} {[%emt 00:00:16]} Rxa2 {[%clk 00:14:36]} {[%emt 00:00:04]} 38.
g4 {[%clk 00:15:24]} {[%emt 00:00:05]} Rf2+ {[%clk 00:14:37]} {[%emt 00:00:07]}
39. Ke1 {[%clk 00:15:23]} {[%emt 00:00:13]} Rg2 {[%clk 00:14:45]} {[%emt
00:00:02]} 40. Rd3 {[%clk 00:15:30]} {[%emt 00:00:04]} Rxg4 {[%clk 00:14:52]}
{[%emt 00:00:03]} 41. Kd2 {[%clk 00:15:36]} {[%emt 00:00:03]} Ke7 {[%clk
00:14:58]} {[%emt 00:00:04]} 42. Kc2 {[%clk 00:15:45]} {[%emt 00:00:02]} e5
{[%clk 00:15:06]} {[%emt 00:00:02]} 43. Kd1 {[%clk 00:15:50]} {[%emt 00:00:04]}
a5 {[%clk 00:15:15]} {[%emt 00:00:02]} 44. Rd2 {[%clk 00:15:54]} {[%emt
00:00:04]} Bc3 {[%clk 00:15:23]} {[%emt 00:00:04]} 45. Re2 {[%clk 00:15:54]}
{[%emt 00:00:08]} Ke6 {[%clk 00:15:31]} {[%emt 00:00:03]} 46. Kc2 {[%clk
00:16:03]} {[%emt 00:00:02]} Bd4 {[%clk 00:15:28]} {[%emt 00:00:11]} 47. Kd2
{[%clk 00:15:57]} {[%emt 00:00:13]} Rf4 {[%clk 00:15:34]} {[%emt 00:00:05]} 48.
Kc2 {[%clk 00:16:04]} {[%emt 00:00:06]} Rf2 {[%clk 00:15:43]} {[%emt 00:00:01]}
49. Rxf2 {[%clk 00:16:13]} {[%emt 00:00:02]} Bxf2 {[%clk 00:15:51]} 50. Kb3
{[%clk 00:16:21]} {[%emt 00:00:02]} e4 {[%clk 00:16:00]} 0-1